[Event "Titled Tuesday Blitz March 01 Late 2022"]
[White "Jaskolka, Tomasz"]
[Black "Janturin, Artur"]
[WhiteFideId "1170791"]
[BlackFideId "4130022"]
[WhiteElo "2054"]
[BlackElo "2355"]
[Result "1-0"]
[Round "11"]
[TimeControl "180+1"]
[Date "2022.03.02"]
[WhiteClock "0:00:05"]
[BlackClock "0:00:01"]

1. d4 {[%clk 0:03:00]}  e6 {[%clk 0:02:58]} 2. Bf4 {[%clk 0:03:00]}  c5 {[%clk 0:02:55]} 3. e3 {[%clk 0:02:59]}  d5 {[%clk 0:02:55]} 4. c3 {[%clk 0:02:59]}  Nc6 {[%clk 0:02:55]} 5. Nd2 {[%clk 0:02:59]}  Bd6 {[%clk 0:02:54]} 6. Bg3 {[%clk 0:02:59]}  Nf6 {[%clk 0:02:53]} 7. Ngf3 {[%clk 0:03:00]}  b6 {[%clk 0:02:54]} 8. Bd3 {[%clk 0:02:58]}  Bb7 {[%clk 0:02:54]} 9. Ne5 {[%clk 0:02:58]}  O-O {[%clk 0:02:53]} 10. f4 {[%clk 0:02:58]}  Ne7 {[%clk 0:02:52]} 11. Bh4 {[%clk 0:02:39]}  Ng6 {[%clk 0:02:48]} 12. Bxf6 {[%clk 0:02:34]}  gxf6 {[%clk 0:02:15]} 13. Ng4 {[%clk 0:02:28]}  cxd4 {[%clk 0:02:10]} 14. cxd4 {[%clk 0:02:27]}  f5 {[%clk 0:02:07]} 15. Ne5 {[%clk 0:02:27]}  f6 {[%clk 0:02:07]} 16. Nxg6 {[%clk 0:02:26]}  hxg6 {[%clk 0:02:08]} 17. g4 {[%clk 0:02:22]}  Kf7 {[%clk 0:01:24]} 18. Qf3 {[%clk 0:02:09]}  Rh8 {[%clk 0:01:18]} 19. O-O-O {[%clk 0:02:05]}  Qc8+ {[%clk 0:01:04]} 20. Kb1 {[%clk 0:02:05]}  Ba6 {[%clk 0:01:05]} 21. Bc2 {[%clk 0:02:03]}  Qc6 {[%clk 0:00:47]} 22. gxf5 {[%clk 0:01:50]}  gxf5 {[%clk 0:00:48]} 23. Rc1 {[%clk 0:01:46]}  Qb5 {[%clk 0:00:47]} 24. Rcg1 {[%clk 0:01:36]}  Qe2 {[%clk 0:00:46]} 25. Qxe2 {[%clk 0:01:25]}  Bxe2 {[%clk 0:00:47]} 26. Rg2 {[%clk 0:01:25]}  Bb5 {[%clk 0:00:43]} 27. h4 {[%clk 0:01:25]}  Rh5 {[%clk 0:00:41]} 28. Bd1 {[%clk 0:01:24]}  Bd3+ {[%clk 0:00:41]} 29. Ka1 {[%clk 0:01:24]}  Rh6 {[%clk 0:00:41]} 30. h5 {[%clk 0:01:20]}  Bb4 {[%clk 0:00:41]} 31. Bf3 {[%clk 0:01:05]}  Rah8 {[%clk 0:00:40]} 32. a3 {[%clk 0:00:54]}  Bxd2 {[%clk 0:00:35]} 33. Rxd2 {[%clk 0:00:54]}  Be4 {[%clk 0:00:36]} 34. Bxe4 {[%clk 0:00:54]}  fxe4 {[%clk 0:00:35]} 35. Rc2 {[%clk 0:00:37]}  Rxh5 {[%clk 0:00:34]} 36. Rc7+ {[%clk 0:00:36]}  Kg6 {[%clk 0:00:34]} 37. Rg1+ {[%clk 0:00:36]}  Kf5 {[%clk 0:00:34]} 38. Rxa7 {[%clk 0:00:36]}  Rh1 {[%clk 0:00:32]} 39. Rg7 {[%clk 0:00:36]}  Rxg1+ {[%clk 0:00:31]} 40. Rxg1 {[%clk 0:00:35]}  Rh3 {[%clk 0:00:31]} 41. Re1 {[%clk 0:00:35]}  Kg4 {[%clk 0:00:31]} 42. b4 {[%clk 0:00:35]}  Kf3 {[%clk 0:00:31]} 43. a4 {[%clk 0:00:35]}  Kf2 {[%clk 0:00:31]} 44. Rb1 {[%clk 0:00:31]}  Rxe3 {[%clk 0:00:31]} 45. Ka2 {[%clk 0:00:31]}  Rd3 {[%clk 0:00:20]} 46. a5 {[%clk 0:00:27]}  bxa5 {[%clk 0:00:20]} 47. b5 {[%clk 0:00:24]}  e3 {[%clk 0:00:18]} 48. b6 {[%clk 0:00:24]}  e2 {[%clk 0:00:18]} 49. b7 {[%clk 0:00:22]}  Rd2+ {[%clk 0:00:17]} 50. Ka3 {[%clk 0:00:18]}  Rd3+ {[%clk 0:00:16]} 51. Ka2 {[%clk 0:00:17]}  Rd2+ {[%clk 0:00:15]} 52. Ka1 {[%clk 0:00:17]}  Rd1 {[%clk 0:00:15]} 53. b8=Q {[%clk 0:00:15]}  Rxb1+ {[%clk 0:00:14]} 54. Kxb1 {[%clk 0:00:12]}  e1=Q+ {[%clk 0:00:15]} 55. Kc2 {[%clk 0:00:13]}  Qe4+ {[%clk 0:00:12]} 56. Kc3 {[%clk 0:00:12]}  Qe3+ {[%clk 0:00:11]} 57. Kc2 {[%clk 0:00:13]}  Qe2+ {[%clk 0:00:11]} 58. Kc3 {[%clk 0:00:10]}  Qc4+ {[%clk 0:00:12]} 59. Kd2 {[%clk 0:00:07]}  Qxd4+ {[%clk 0:00:11]} 60. Kc2 {[%clk 0:00:07]}  Qc4+ {[%clk 0:00:11]} 61. Kd1 {[%clk 0:00:08]}  Qd3+ {[%clk 0:00:10]} 62. Kc1 {[%clk 0:00:08]}  Qd4 {[%clk 0:00:10]} 63. Qh8 {[%clk 0:00:06]}  Qxf4+ {[%clk 0:00:09]} 64. Kb1 {[%clk 0:00:06]}  Qf5+ {[%clk 0:00:08]} 65. Ka2 {[%clk 0:00:06]}  Ke3 {[%clk 0:00:07]} 66. Qh6+ {[%clk 0:00:05]}  Qg5 {[%clk 0:00:06]} 67. Qh3+ {[%clk 0:00:04]}  Kd4 {[%clk 0:00:05]} 68. Qxe6 {[%clk 0:00:03]}  Qe5 {[%clk 0:00:05]} 69. Qb6+ {[%clk 0:00:03]}  Ke4 {[%clk 0:00:05]} 70. Qxa5 {[%clk 0:00:03]}  d4 {[%clk 0:00:06]} 71. Qe1+ {[%clk 0:00:03]}  Kd5 {[%clk 0:00:05]} 72. Qh1+ {[%clk 0:00:04]}  Ke6 {[%clk 0:00:06]} 73. Qh3+ {[%clk 0:00:04]}  Qf5 {[%clk 0:00:05]} 74. Qh8 {[%clk 0:00:04]}  Ke5 {[%clk 0:00:05]} 75. Ka1 {[%clk 0:00:04]}  Qf1+ {[%clk 0:00:03]} 76. Ka2 {[%clk 0:00:04]}  Qe2+ {[%clk 0:00:03]} 77. Ka1 {[%clk 0:00:04]}  Qe1+ {[%clk 0:00:03]} 78. Ka2 {[%clk 0:00:04]}  Qf2+ {[%clk 0:00:03]} 79. Ka1 {[%clk 0:00:05]}  Qf1+ {[%clk 0:00:02]} 80. Ka2 {[%clk 0:00:05]}  Qe2+ {[%clk 0:00:02]} 81. Ka1 {[%clk 0:00:05]}  d3 {[%clk 0:00:03]} 82. Qe8+ {[%clk 0:00:05]}  Kf5 {[%clk 0:00:02]} 83. Qd7+ {[%clk 0:00:04]}  Kg5 {[%clk 0:00:02]} 84. Qg7+ {[%clk 0:00:04]}  Kf5 {[%clk 0:00:01]} 85. Qh7+ {[%clk 0:00:05]}  Ke6 {[%clk 0:00:01]} 86. Qg8+ {[%clk 0:00:05]} 1-0


[Site "https://www.chess.com"]

[Event "Titled Tuesday Blitz March 01 Late 2022"]
[White "Jobava, Baadur"]
[Black "Maksimovic, Bojan"]
[WhiteFideId "13601520"]
[BlackFideId "14408120"]
[WhiteElo "2617"]
[BlackElo "2450"]
[Result "0-1"]
[Round "11"]
[TimeControl "180+1"]
[Date "2022.03.01"]
[WhiteClock "0:00:15"]
[BlackClock "0:00:05"]

1. d4 {[%clk 0:03:00]}  Nf6 {[%clk 0:03:00]} 2. Nc3 {[%clk 0:02:59]}  d5 {[%clk 0:02:56]} 3. Bf4 {[%clk 0:02:58]}  c5 {[%clk 0:02:54]} 4. e3 {[%clk 0:02:56]}  cxd4 {[%clk 0:02:54]} 5. exd4 {[%clk 0:02:57]}  Bg4 {[%clk 0:02:54]} 6. f3 {[%clk 0:02:56]}  Bd7 {[%clk 0:02:54]} 7. Bd3 {[%clk 0:02:55]}  Nc6 {[%clk 0:02:50]} 8. Nge2 {[%clk 0:02:56]}  Qb6 {[%clk 0:02:39]} 9. Na4 {[%clk 0:02:50]}  Qa5+ {[%clk 0:02:38]} 10. c3 {[%clk 0:02:51]}  e6 {[%clk 0:02:29]} 11. O-O {[%clk 0:02:50]}  Nh5 {[%clk 0:02:23]} 12. Be3 {[%clk 0:02:42]}  Bd6 {[%clk 0:02:21]} 13. Nc5 {[%clk 0:02:42]}  Qc7 {[%clk 0:02:20]} 14. g3 {[%clk 0:02:40]}  O-O {[%clk 0:02:16]} 15. Kg2 {[%clk 0:02:32]}  g6 {[%clk 0:02:14]} 16. Qd2 {[%clk 0:02:30]}  Rae8 {[%clk 0:02:12]} 17. Nxd7 {[%clk 0:02:27]}  Qxd7 {[%clk 0:02:12]} 18. g4 {[%clk 0:02:26]}  Ng7 {[%clk 0:02:11]} 19. f4 {[%clk 0:02:25]}  f6 {[%clk 0:01:47]} 20. h3 {[%clk 0:02:20]}  e5 {[%clk 0:01:27]} 21. fxe5 {[%clk 0:02:20]}  fxe5 {[%clk 0:01:28]} 22. Bc2 {[%clk 0:02:20]}  exd4 {[%clk 0:01:19]} 23. Nxd4 {[%clk 0:02:20]}  Ne5 {[%clk 0:01:18]} 24. Rxf8+ {[%clk 0:01:54]}  Rxf8 {[%clk 0:01:19]} 25. Qe2 {[%clk 0:01:54]}  Nc4 {[%clk 0:00:59]} 26. Bh6 {[%clk 0:01:50]}  Re8 {[%clk 0:00:59]} 27. Qf3 {[%clk 0:01:47]}  Bf8 {[%clk 0:00:48]} 28. Rf1 {[%clk 0:01:35]}  Ne6 {[%clk 0:00:43]} 29. Bc1 {[%clk 0:01:26]}  Nxd4 {[%clk 0:00:42]} 30. cxd4 {[%clk 0:01:27]}  Qe6 {[%clk 0:00:31]} 31. Rf2 {[%clk 0:01:19]}  Nd6 {[%clk 0:00:28]} 32. Bb3 {[%clk 0:01:18]}  Ne4 {[%clk 0:00:25]} 33. Re2 {[%clk 0:01:17]}  Kg7 {[%clk 0:00:21]} 34. Qf4 {[%clk 0:01:10]}  Bd6 {[%clk 0:00:19]} 35. Qh6+ {[%clk 0:01:07]}  Kg8 {[%clk 0:00:17]} 36. Qe3 {[%clk 0:00:54]}  Kg7 {[%clk 0:00:15]} 37. a3 {[%clk 0:00:43]}  Bc7 {[%clk 0:00:15]} 38. Qh6+ {[%clk 0:00:41]}  Kh8 {[%clk 0:00:11]} 39. Bg5 {[%clk 0:00:37]}  Qd6 {[%clk 0:00:05]} 40. Bf4 {[%clk 0:00:17]}  Qxf4 {[%clk 0:00:04]} 41. Qxf4 {[%clk 0:00:18]}  Bxf4 {[%clk 0:00:05]} 42. Bxd5 {[%clk 0:00:19]}  Nf6 {[%clk 0:00:04]} 43. Rxe8+ {[%clk 0:00:20]}  Nxe8 {[%clk 0:00:04]} 44. Bxb7 {[%clk 0:00:21]}  Nd6 {[%clk 0:00:04]} 45. Ba6 {[%clk 0:00:20]}  Bc1 {[%clk 0:00:04]} 46. b3 {[%clk 0:00:15]}  Bxa3 {[%clk 0:00:05]} 47. Kf3 {[%clk 0:00:16]}  Kg7 {[%clk 0:00:05]} 48. Ke3 {[%clk 0:00:16]}  Kf6 {[%clk 0:00:05]} 49. Kd3 {[%clk 0:00:17]}  Bb2 {[%clk 0:00:05]} 50. Ke3 {[%clk 0:00:15]}  Kg5 {[%clk 0:00:05]} 0-1


[Site "https://www.chess.com"]

[Event "Titled Tuesday Blitz March 01 Late 2022"]
[White "Kanyamarala, Trisha"]
[Black "Mirzoev, Azer"]
[WhiteFideId "45004722"]
[BlackFideId "13400304"]
[WhiteElo "2002"]
[BlackElo "2525"]
[Result "1-0"]
[Round "11"]
[TimeControl "180+1"]
[Date "2022.03.01"]
[WhiteClock "0:00:04"]
[BlackClock "0:00:01"]

1. d4 {[%clk 0:02:55]}  Nf6 {[%clk 0:02:58]} 2. c4 {[%clk 0:02:55]}  e6 {[%clk 0:02:59]} 3. Nc3 {[%clk 0:02:54]}  c5 {[%clk 0:02:59]} 4. d5 {[%clk 0:02:52]}  exd5 {[%clk 0:02:59]} 5. cxd5 {[%clk 0:02:53]}  d6 {[%clk 0:03:00]} 6. e4 {[%clk 0:02:54]}  a6 {[%clk 0:03:00]} 7. a4 {[%clk 0:02:52]}  g6 {[%clk 0:03:00]} 8. h3 {[%clk 0:02:52]}  Bg7 {[%clk 0:02:57]} 9. Nf3 {[%clk 0:02:53]}  O-O {[%clk 0:02:54]} 10. Be3 {[%clk 0:02:47]}  Re8 {[%clk 0:02:54]} 11. Nd2 {[%clk 0:02:46]}  Nbd7 {[%clk 0:02:55]} 12. Be2 {[%clk 0:02:46]}  Qe7 {[%clk 0:02:37]} 13. O-O {[%clk 0:02:44]}  Qf8 {[%clk 0:02:34]} 14. f4 {[%clk 0:02:36]}  Nxe4 {[%clk 0:02:30]} 15. Ncxe4 {[%clk 0:02:31]}  f5 {[%clk 0:02:31]} 16. Ng5 {[%clk 0:02:24]}  Rxe3 {[%clk 0:02:29]} 17. Ne6 {[%clk 0:02:20]}  Qe7 {[%clk 0:01:57]} 18. Nc4 {[%clk 0:02:13]}  Re4 {[%clk 0:01:52]} 19. Bd3 {[%clk 0:02:09]}  Nf6 {[%clk 0:01:30]} 20. Bxe4 {[%clk 0:02:07]}  Nxe4 {[%clk 0:01:30]} 21. Nxg7 {[%clk 0:02:04]}  Kxg7 {[%clk 0:01:24]} 22. Re1 {[%clk 0:02:04]}  Qf6 {[%clk 0:01:14]} 23. Qd3 {[%clk 0:01:55]}  Bd7 {[%clk 0:01:13]} 24. Nd2 {[%clk 0:01:52]}  Re8 {[%clk 0:01:05]} 25. Rab1 {[%clk 0:01:48]}  b5 {[%clk 0:01:02]} 26. b3 {[%clk 0:01:33]}  h5 {[%clk 0:00:51]} 27. axb5 {[%clk 0:01:16]}  axb5 {[%clk 0:00:50]} 28. Ra1 {[%clk 0:01:15]}  Re7 {[%clk 0:00:22]} 29. Ra7 {[%clk 0:01:07]}  Qd4+ {[%clk 0:00:20]} 30. Qxd4+ {[%clk 0:01:02]}  cxd4 {[%clk 0:00:20]} 31. Nf3 {[%clk 0:00:52]}  d3 {[%clk 0:00:20]} 32. Rd1 {[%clk 0:00:52]}  Kf6 {[%clk 0:00:16]} 33. Rxd3 {[%clk 0:00:51]}  Nc5 {[%clk 0:00:17]} 34. Rc3 {[%clk 0:00:48]}  b4 {[%clk 0:00:17]} 35. Rc1 {[%clk 0:00:47]}  Nxb3 {[%clk 0:00:10]} 36. Rcc7 {[%clk 0:00:43]}  Nc5 {[%clk 0:00:08]} 37. Nd4 {[%clk 0:00:39]}  Re4 {[%clk 0:00:08]} 38. Nc6 {[%clk 0:00:27]}  b3 {[%clk 0:00:08]} 39. Rab7 {[%clk 0:00:11]}  Rxf4 {[%clk 0:00:08]} 40. Rxd7 {[%clk 0:00:08]}  Nxd7 {[%clk 0:00:07]} 41. Rxd7 {[%clk 0:00:07]}  Rc4 {[%clk 0:00:06]} 42. Rb7 {[%clk 0:00:07]}  Rc3 {[%clk 0:00:06]} 43. Nd4 {[%clk 0:00:06]}  Rd3 {[%clk 0:00:06]} 44. Nxb3 {[%clk 0:00:05]}  Rxd5 {[%clk 0:00:06]} 45. Rb6 {[%clk 0:00:05]}  h4 {[%clk 0:00:05]} 46. Kf2 {[%clk 0:00:05]}  g5 {[%clk 0:00:04]} 47. Nc1 {[%clk 0:00:05]}  Ke5 {[%clk 0:00:04]} 48. Ne2 {[%clk 0:00:05]}  g4 {[%clk 0:00:03]} 49. hxg4 {[%clk 0:00:04]}  fxg4 {[%clk 0:00:03]} 50. Rb8 {[%clk 0:00:05]}  g3+ {[%clk 0:00:02]} 51. Ke3 {[%clk 0:00:05]}  Ra5 {[%clk 0:00:02]} 52. Re8+ {[%clk 0:00:05]}  Kf5 {[%clk 0:00:01]} 53. Nd4+ {[%clk 0:00:05]}  Kg4 {[%clk 0:00:01]} 54. Rg8+ {[%clk 0:00:06]}  Kh5 {[%clk 0:00:01]} 55. Kf4 {[%clk 0:00:05]}  Ra4 {[%clk 0:00:01]} 56. Ke4 {[%clk 0:00:04]} 1-0


[Site "https://www.chess.com"]

[Event "Titled Tuesday Blitz March 01 Late 2022"]
[White "Khabinets, Ivan"]
[Black "Rangel, Daniel"]
[WhiteFideId "14115980"]
[BlackFideId "2124475"]
[WhiteElo "2114"]
[BlackElo "2187"]
[Result "1/2-1/2"]
[Round "11"]
[TimeControl "180+1"]
[Date "2022.03.02"]
[WhiteClock "0:00:06"]
[BlackClock "0:00:09"]

1. Nf3 {[%clk 0:03:00]}  Nf6 {[%clk 0:02:55]} 2. g3 {[%clk 0:03:00]}  g6 {[%clk 0:02:54]} 3. Bg2 {[%clk 0:03:01]}  Bg7 {[%clk 0:02:54]} 4. O-O {[%clk 0:03:01]}  O-O {[%clk 0:02:55]} 5. c4 {[%clk 0:03:02]}  d6 {[%clk 0:02:54]} 6. d4 {[%clk 0:03:02]}  c6 {[%clk 0:02:52]} 7. Nc3 {[%clk 0:03:02]}  Bf5 {[%clk 0:02:52]} 8. Nh4 {[%clk 0:03:00]}  Be6 {[%clk 0:02:51]} 9. b3 {[%clk 0:02:58]}  d5 {[%clk 0:02:50]} 10. c5 {[%clk 0:02:53]}  Qc8 {[%clk 0:02:46]} 11. Re1 {[%clk 0:02:51]}  Bh3 {[%clk 0:02:46]} 12. Bh1 {[%clk 0:02:51]}  Nbd7 {[%clk 0:02:41]} 13. Nf3 {[%clk 0:02:48]}  Bg4 {[%clk 0:02:33]} 14. Bf4 {[%clk 0:02:47]}  Re8 {[%clk 0:02:19]} 15. Ne5 {[%clk 0:02:46]}  Nxe5 {[%clk 0:02:16]} 16. Bxe5 {[%clk 0:02:47]}  Nd7 {[%clk 0:02:11]} 17. Bxg7 {[%clk 0:02:47]}  Kxg7 {[%clk 0:02:12]} 18. Qd2 {[%clk 0:02:47]}  e5 {[%clk 0:02:09]} 19. e3 {[%clk 0:02:48]}  e4 {[%clk 0:02:07]} 20. b4 {[%clk 0:02:46]}  Nf6 {[%clk 0:01:50]} 21. a4 {[%clk 0:02:35]}  h5 {[%clk 0:01:48]} 22. h4 {[%clk 0:02:22]}  Bf3 {[%clk 0:01:45]} 23. Ne2 {[%clk 0:02:19]}  Bxh1 {[%clk 0:01:34]} 24. Kxh1 {[%clk 0:02:19]}  Qh3+ {[%clk 0:01:34]} 25. Kg1 {[%clk 0:02:19]}  Ng4 {[%clk 0:01:34]} 26. Nf4 {[%clk 0:02:18]}  Qh2+ {[%clk 0:01:25]} 27. Kf1 {[%clk 0:02:18]}  Qh1+ {[%clk 0:01:23]} 28. Ke2 {[%clk 0:02:18]}  Qf3+ {[%clk 0:01:23]} 29. Kf1 {[%clk 0:02:18]}  Rh8 {[%clk 0:01:07]} 30. Kg1 {[%clk 0:02:00]}  f6 {[%clk 0:00:52]} 31. Qe2 {[%clk 0:01:59]}  g5 {[%clk 0:00:43]} 32. Qxf3 {[%clk 0:00:47]}  exf3 {[%clk 0:00:44]} 33. hxg5 {[%clk 0:00:45]}  fxg5 {[%clk 0:00:45]} 34. Nh3 {[%clk 0:00:38]}  Kg6 {[%clk 0:00:41]} 35. e4 {[%clk 0:00:39]}  Rad8 {[%clk 0:00:35]} 36. Ra3 {[%clk 0:00:34]}  Rhf8 {[%clk 0:00:30]} 37. e5 {[%clk 0:00:29]}  Nh6 {[%clk 0:00:24]} 38. b5 {[%clk 0:00:27]}  Rde8 {[%clk 0:00:23]} 39. bxc6 {[%clk 0:00:26]}  bxc6 {[%clk 0:00:23]} 40. Rb1 {[%clk 0:00:27]}  Nf5 {[%clk 0:00:20]} 41. Rb4 {[%clk 0:00:23]}  Rb8 {[%clk 0:00:19]} 42. Rab3 {[%clk 0:00:19]}  Rxb4 {[%clk 0:00:17]} 43. Rxb4 {[%clk 0:00:20]}  a5 {[%clk 0:00:17]} 44. Rb6 {[%clk 0:00:09]}  Nxd4 {[%clk 0:00:18]} 45. Kf1 {[%clk 0:00:08]}  Kf5 {[%clk 0:00:17]} 46. Ke1 {[%clk 0:00:03]}  Re8 {[%clk 0:00:12]} 47. Kd2 {[%clk 0:00:03]}  Rxe5 {[%clk 0:00:11]} 48. Kd3 {[%clk 0:00:04]}  Ne6 {[%clk 0:00:10]} 49. Rxc6 {[%clk 0:00:04]}  g4 {[%clk 0:00:09]} 50. Nf4 {[%clk 0:00:04]}  Nxf4+ {[%clk 0:00:09]} 51. gxf4 {[%clk 0:00:05]}  Kxf4 {[%clk 0:00:09]} 52. Rf6+ {[%clk 0:00:05]}  Rf5 {[%clk 0:00:07]} 53. Rg6 {[%clk 0:00:02]}  h4 {[%clk 0:00:07]} 54. c6 {[%clk 0:00:03]}  g3 {[%clk 0:00:07]} 55. fxg3+ {[%clk 0:00:02]}  hxg3 {[%clk 0:00:08]} 56. c7 {[%clk 0:00:02]}  Rf8 {[%clk 0:00:08]} 57. Rf6+ {[%clk 0:00:02]}  Rxf6 {[%clk 0:00:08]} 58. c8=Q {[%clk 0:00:03]}  f2 {[%clk 0:00:08]} 59. Qb8+ {[%clk 0:00:03]}  Kg4 {[%clk 0:00:08]} 60. Qg8+ {[%clk 0:00:03]}  Kf5 {[%clk 0:00:07]} 61. Qxd5+ {[%clk 0:00:02]}  Kg6 {[%clk 0:00:07]} 62. Qg8+ {[%clk 0:00:02]}  Kh6 {[%clk 0:00:07]} 63. Qh8+ {[%clk 0:00:02]}  Kg6 {[%clk 0:00:08]} 64. Qg8+ {[%clk 0:00:03]}  Kh6 {[%clk 0:00:08]} 65. Qh8+ {[%clk 0:00:03]}  Kg5 {[%clk 0:00:07]} 66. Qg7+ {[%clk 0:00:03]}  Kf5 {[%clk 0:00:07]} 67. Qh7+ {[%clk 0:00:03]}  Ke6 {[%clk 0:00:07]} 68. Qg8+ {[%clk 0:00:04]}  Ke7 {[%clk 0:00:07]} 69. Qg7+ {[%clk 0:00:04]}  Rf7 {[%clk 0:00:07]} 70. Qe5+ {[%clk 0:00:05]}  Kd8 {[%clk 0:00:08]} 71. Qb8+ {[%clk 0:00:05]}  Ke7 {[%clk 0:00:08]} 72. Qe5+ {[%clk 0:00:05]}  Kf8 {[%clk 0:00:09]} 73. Qh8+ {[%clk 0:00:05]}  Ke7 {[%clk 0:00:09]} 74. Qe5+ {[%clk 0:00:06]} 1/2-1/2


[Site "https://www.chess.com"]

[Event "Titled Tuesday Blitz March 01 Late 2022"]
[White "Kopczynski, Michal"]
[Black "Beerdsen, Thomas"]
[WhiteFideId "1124200"]
[BlackFideId "1030108"]
[WhiteElo "2235"]
[BlackElo "2585"]
[Result "0-1"]
[Round "11"]
[TimeControl "180+1"]
[Date "2022.03.01"]
[WhiteClock "0:00:34"]
[BlackClock "0:01:45"]

1. e4 {[%clk 0:03:00]}  e5 {[%clk 0:02:56]} 2. Nf3 {[%clk 0:03:00]}  Nc6 {[%clk 0:02:56]} 3. Bb5 {[%clk 0:03:00]}  f5 {[%clk 0:02:57]} 4. d3 {[%clk 0:02:59]}  fxe4 {[%clk 0:02:57]} 5. dxe4 {[%clk 0:02:59]}  Nf6 {[%clk 0:02:58]} 6. Nc3 {[%clk 0:03:00]}  Bb4 {[%clk 0:02:58]} 7. Qd3 {[%clk 0:02:58]}  Bxc3+ {[%clk 0:02:57]} 8. bxc3 {[%clk 0:02:58]}  d6 {[%clk 0:02:58]} 9. h3 {[%clk 0:02:54]}  O-O {[%clk 0:02:56]} 10. Bg5 {[%clk 0:02:53]}  Kh8 {[%clk 0:02:56]} 11. O-O-O {[%clk 0:02:47]}  a6 {[%clk 0:02:54]} 12. Bc4 {[%clk 0:02:44]}  Qe8 {[%clk 0:02:50]} 13. g4 {[%clk 0:02:36]}  Nd7 {[%clk 0:02:49]} 14. Qe2 {[%clk 0:02:30]}  b5 {[%clk 0:02:41]} 15. Bd5 {[%clk 0:02:28]}  Nb6 {[%clk 0:02:42]} 16. Bb3 {[%clk 0:02:11]}  Be6 {[%clk 0:02:37]} 17. Be3 {[%clk 0:02:09]}  Nc4 {[%clk 0:02:37]} 18. Ng5 {[%clk 0:02:05]}  Bg8 {[%clk 0:02:37]} 19. h4 {[%clk 0:01:58]}  a5 {[%clk 0:02:35]} 20. a4 {[%clk 0:01:50]}  Nxe3 {[%clk 0:02:18]} 21. Qxe3 {[%clk 0:01:48]}  Bxb3 {[%clk 0:02:15]} 22. cxb3 {[%clk 0:01:49]}  bxa4 {[%clk 0:02:15]} 23. bxa4 {[%clk 0:01:48]}  Rb8 {[%clk 0:02:13]} 24. Kc2 {[%clk 0:01:33]}  h6 {[%clk 0:02:00]} 25. Nh3 {[%clk 0:01:32]}  Qe6 {[%clk 0:01:57]} 26. Rd5 {[%clk 0:01:29]}  Ne7 {[%clk 0:01:54]} 27. c4 {[%clk 0:01:16]}  c6 {[%clk 0:01:53]} 28. Rd3 {[%clk 0:00:51]}  Qxc4+ {[%clk 0:01:52]} 29. Rc3 {[%clk 0:00:51]}  Qa2+ {[%clk 0:01:52]} 30. Kd3 {[%clk 0:00:51]}  Rb4 {[%clk 0:01:46]} 31. Qc1 {[%clk 0:00:34]}  Rf3+ {[%clk 0:01:45]} 0-1


[Site "https://www.chess.com"]

[Event "Titled Tuesday Blitz March 01 Late 2022"]
[White "Kosakowski, Jakub"]
[Black "Shuvalova, Polina"]
[WhiteFideId "1185080"]
[BlackFideId "24171760"]
[WhiteElo "2476"]
[BlackElo "2355"]
[Result "0-1"]
[Round "11"]
[TimeControl "180+1"]
[Date "2022.03.01"]
[WhiteClock "0:00:06"]
[BlackClock "0:00:05"]

1. d4 {[%clk 0:02:58]}  Nf6 {[%clk 0:02:59]} 2. c4 {[%clk 0:02:58]}  e6 {[%clk 0:02:59]} 3. g3 {[%clk 0:02:57]}  d5 {[%clk 0:02:59]} 4. Nf3 {[%clk 0:02:55]}  Bb4+ {[%clk 0:02:57]} 5. Nbd2 {[%clk 0:02:55]}  O-O {[%clk 0:02:55]} 6. Bg2 {[%clk 0:02:55]}  dxc4 {[%clk 0:02:54]} 7. Qc2 {[%clk 0:02:45]}  a5 {[%clk 0:02:53]} 8. a3 {[%clk 0:02:41]}  Bxd2+ {[%clk 0:02:49]} 9. Bxd2 {[%clk 0:02:42]}  b5 {[%clk 0:02:48]} 10. a4 {[%clk 0:02:38]}  c6 {[%clk 0:02:43]} 11. e4 {[%clk 0:02:38]}  Nbd7 {[%clk 0:02:38]} 12. e5 {[%clk 0:02:30]}  Nd5 {[%clk 0:02:37]} 13. Ng5 {[%clk 0:02:30]}  g6 {[%clk 0:02:29]} 14. h4 {[%clk 0:02:31]}  Nb4 {[%clk 0:02:16]} 15. Bxb4 {[%clk 0:02:24]}  axb4 {[%clk 0:02:15]} 16. Bxc6 {[%clk 0:02:25]}  Rxa4 {[%clk 0:02:10]} 17. Rxa4 {[%clk 0:02:19]}  bxa4 {[%clk 0:02:10]} 18. Qxc4 {[%clk 0:02:20]}  a3 {[%clk 0:02:02]} 19. bxa3 {[%clk 0:02:05]}  bxa3 {[%clk 0:02:01]} 20. O-O {[%clk 0:02:06]}  Qa5 {[%clk 0:01:43]} 21. Ne4 {[%clk 0:02:03]}  Ba6 {[%clk 0:01:36]} 22. Qc1 {[%clk 0:01:56]}  Bxf1 {[%clk 0:00:52]} 23. Bxd7 {[%clk 0:00:35]}  Bd3 {[%clk 0:00:51]} 24. Nf6+ {[%clk 0:00:23]}  Kg7 {[%clk 0:00:51]} 25. Ng4 {[%clk 0:00:23]}  Kh8 {[%clk 0:00:16]} 26. Nf6 {[%clk 0:00:16]}  a2 {[%clk 0:00:06]} 27. Qh6 {[%clk 0:00:15]}  Qe1+ {[%clk 0:00:05]} 28. Kh2 {[%clk 0:00:05]}  Qxf2+ {[%clk 0:00:04]} 29. Kh3 {[%clk 0:00:06]}  Bf1+ {[%clk 0:00:04]} 30. Kg4 {[%clk 0:00:06]}  Qf5# {[%clk 0:00:05]} 0-1


[Site "https://www.chess.com"]